bitfinex/quotes_BTCUSD_20251001
["timestamp","ask_amount","ask_price","bid_price","bid_amount"]
[1759328017384,0.99140324,117140.0,117130.0,0.00022615]
[1759328017726,0.64388324,117140.0,117130.0,0.00022615]
[1759328017930,0.99140324,117140.0,117130.0,0.00022615]
[1759328018972,0.64388324,117140.0,117130.0,0.00022615]
[1759328019179,0.99140324,117140.0,117130.0,0.00022615]
[1759328019616,0.73264324,117140.0,117130.0,0.00022615]
[1759328019830,0.99136324,117140.0,117130.0,0.00022615]
[1759328020676,0.64388324,117140.0,117130.0,0.00022615]
[1759328021269,0.99136324,117140.0,117130.0,0.00022615]
[1759328021674,0.64388324,117140.0,117130.0,0.00022615]
[1759328021881,0.99136324,117140.0,117130.0,0.00022615]
[1759328022403,0.98286324,117140.0,117130.0,0.00022615]
[1759328022774,0.99136324,117140.0,117130.0,0.00022615]
[1759328024459,1.01636324,117140.0,117130.0,1e-08]
[1759328024609,1.28272324,117140.0,117130.0,1e-08]
[1759328024996,1.47152324,117140.0,117130.0,1e-08]
[1759328025411,1.02752324,117140.0,117130.0,1e-08]
[1759328025616,1.47152324,117140.0,117130.0,1e-08]
[1759328026034,1.51053801,117140.0,117130.0,1e-08]
[1759328026425,1.47152324,117140.0,117130.0,1e-08]
[1759328027104,1.21288324,117140.0,117130.0,1e-08]
[1759328027311,1.4828595,117140.0,117130.0,1e-08]
[1759328027516,0.7802595,117140.0,117130.0,1e-08]
[1759328027945,1.47490252,117140.0,117130.0,1e-08]
[1759328028368,1.56361399,117140.0,117130.0,1e-08]
[1759328028584,1.38606252,117140.0,117130.0,1e-08]
[1759328028916,1.28606252,117140.0,117130.0,1e-08]
[1759328029120,0.64730252,117140.0,117130.0,1e-08]
[1759328029326,1.44644324,117140.0,117130.0,1e-08]
[1759328029535,0.74388324,117140.0,117130.0,1e-08]
[1759328029743,1.34644324,117140.0,117130.0,1e-08]
[1759328030388,1.35440299,117140.0,117130.0,1e-08]
[1759328030821,1.40548575,117140.0,117130.0,1e-08]
[1759328032195,0.70292575,117140.0,117130.0,1e-08]
[1759328032404,0.65184299,117140.0,117130.0,1e-08]
[1759328032615,1.35440299,117140.0,117130.0,1e-08]
[1759328033051,0.65184299,117140.0,117130.0,1e-08]
[1759328033486,1.35440299,117140.0,117130.0,1e-08]
[1759328033692,1.34586299,117140.0,117130.0,1e-08]
[1759328034617,1.34587149,117140.0,117130.0,1e-08]
[1759328035176,1.43458296,117140.0,117130.0,1e-08]
[1759328035608,1.34587149,117140.0,117130.0,1e-08]
[1759328036211,0.73760149,117140.0,117130.0,1e-08]
[1759328036432,0.99910149,117140.0,117130.0,1e-08]
[1759328038166,0.1707796,117110.0,117100.0,0.0004]
[1759328038377,0.4292196,117110.0,117100.0,0.00086584]
[1759328038605,0.52061507,117110.0,117100.0,0.00086584]
[1759328039026,0.78761506,117110.0,117100.0,0.00086584]
[1759328039457,0.35638546,117110.0,117100.0,0.17278003]
[1759328039666,0.35638546,117110.0,117100.0,0.17348003]
[1759328039891,0.61474546,117110.0,117100.0,0.17348003]
[1759328040095,0.61474546,117110.0,117100.0,0.17278003]
[1759328040701,0.61474546,117110.0,117100.0,0.17348003]
[1759328040913,0.17073587,117140.0,117120.0,0.17076502]
[1759328041119,0.08938547,117140.0,117130.0,0.17144409]
[1759328041319,0.51848134,117140.0,117130.0,0.17256409]
[1759328041532,0.51848134,117140.0,117130.0,0.00112]
[1759328041704,0.51848134,117140.0,117120.0,0.17076413]
[1759328041942,0.26013608,117130.0,117110.0,0.18000542]
[1759328042294,0.26013608,117130.0,117110.0,0.17930542]
[1759328042490,0.2717336,117130.0,117100.0,0.00156584]
[1759328042735,0.2717336,117130.0,117100.0,0.00086584]
[1759328042736,0.43109502,117120.0,117100.0,0.00086584]
[1759328042912,0.51847049,117120.0,117100.0,0.00156584]
[1759328043114,0.51847049,117120.0,117110.0,0.00112]
[1759328043953,0.51847049,117120.0,117100.0,0.17165999]
[1759328044257,0.51847049,117120.0,117110.0,0.00112]
[1759328044458,0.34766547,117120.0,117110.0,0.1718996]
[1759328045005,0.51843049,117120.0,117110.0,0.1718996]
[1759328045198,0.08938547,117120.0,117110.0,0.1718996]
[1759328045424,0.08938547,117120.0,117110.0,0.00112]
[1759328045425,0.42900502,117120.0,117110.0,0.00112]
[1759328045628,0.42900502,117120.0,117110.0,0.1718996]
[1759328045839,0.42900502,117120.0,117110.0,0.00112]
[1759328046211,0.51839049,117120.0,117110.0,0.00112]
[1759328047347,0.34762547,117120.0,117110.0,0.1718996]
[1759328047552,0.34758547,117120.0,117110.0,0.18967756]
[1759328047752,0.2582,117120.0,117110.0,0.1725996]
[1759328047961,0.62085221,117130.0,117110.0,0.1725996]
[1759328048155,0.71023768,117130.0,117110.0,0.1725996]
[1759328048359,0.25816,117120.0,117110.0,0.1725996]
[1759328049629,0.4416,117130.0,117120.0,0.17076502]
[1759328049828,0.59995499,117150.0,117130.0,0.17075044]
[1759328050060,0.34750547,117140.0,117120.0,0.17146502]
[1759328050268,0.518242,117140.0,117120.0,0.17146502]
[1759328050478,0.518242,117140.0,117130.0,0.00112]
[1759328050660,0.34750547,117140.0,117130.0,0.17187044]
[1759328050902,0.60301499,117150.0,117140.0,0.17073587]
[1759328050903,0.267,117150.0,117140.0,0.17073587]
[1759328051106,0.267,117150.0,117140.0,0.17185587]
[1759328051107,0.62248978,117150.0,117140.0,0.17185587]
[1759328051279,0.35548978,117150.0,117140.0,0.17185587]
[1759328051526,0.08938547,117150.0,117140.0,0.17185587]
[1759328051737,0.26658,117160.0,117150.0,0.17072129]
[1759328051959,0.26658,117160.0,117150.0,0.17184129]
[1759328051960,0.36394733,117160.0,117150.0,0.17184129]
[1759328052177,0.00798186,117160.0,117150.0,0.18961341]
[1759328052391,0.42877215,117170.0,117150.0,0.18037735]
[1759328052612,0.52613546,117170.0,117160.0,0.17070672]
[1759328052827,0.52613546,117170.0,117160.0,0.00112]
[1759328053031,0.52613546,117170.0,117160.0,0.17182672]
[1759328053465,0.35544331,117170.0,117160.0,0.17182672]
[1759328053918,0.0085,117190.0,117170.0,0.17067879]
[1759328054131,0.08938547,117180.0,117170.0,0.17067879]
[1759328054331,0.09735928,117180.0,117170.0,0.17179879]
[1759328055009,0.09735928,117180.0,117170.0,0.17249879]
[1759328055242,0.00013958,117190.0,117180.0,0.17067759]
[1759328055377,0.00013958,117190.0,117180.0,0.17249759]
[1759328056193,0.00013958,117190.0,117180.0,0.51249759]
[1759328057154,0.00013958,117190.0,117180.0,0.77041759]
[1759328057593,0.00013958,117190.0,117180.0,0.51249759]
[1759328057805,0.00013958,117190.0,117180.0,0.77037759]
[1759328058240,0.00013958,117190.0,117180.0,0.76967759]
[1759328058449,0.00013958,117190.0,117180.0,0.51179759]
[1759328058661,0.1708026,117190.0,117180.0,0.599]
[1759328058873,0.00013958,117190.0,117180.0,0.76967759]
[1759328059077,0.00013958,117190.0,117180.0,0.51179759]
[1759328059715,0.00013958,117190.0,117180.0,0.51249759]
[1759328061614,0.00013958,117190.0,117180.0,0.76959759]
[1759328061823,0.00013958,117190.0,117180.0,0.51179759]
[1759328062030,0.00013958,117190.0,117180.0,0.76955759]
[1759328062240,0.00013958,117190.0,117180.0,0.51249759]
[1759328062449,0.00013958,117190.0,117180.0,0.77025759]
[1759328062651,0.00013958,117190.0,117180.0,0.795876]
[1759328063242,0.00013958,117190.0,117180.0,0.538116]
[1759328063446,0.00013958,117190.0,117180.0,0.795836]
[1759328065029,0.00013958,117190.0,117180.0,0.538116]
[1759328065205,0.00013958,117190.0,117180.0,0.795796]
[1759328065772,0.00013958,117190.0,117180.0,0.538116]
[1759328065956,0.00013958,117190.0,117180.0,0.795796]
[1759328066394,0.00013958,117190.0,117180.0,0.795056]
[1759328066779,0.00013958,117190.0,117180.0,0.538116]
[1759328067356,0.00013958,117190.0,117180.0,0.795756]
[1759328068986,0.00013958,117190.0,117180.0,0.538116]
[1759328069213,0.00013958,117190.0,117180.0,0.795716]
[1759328070427,0.00013958,117190.0,117180.0,0.795676]
[1759328070996,0.00013958,117190.0,117180.0,0.538116]
[1759328071218,0.00013958,117190.0,117180.0,0.795676]
[1759328071503,0.00013958,117190.0,117180.0,0.794976]
[1759328071713,0.00013958,117190.0,117180.0,0.794936]
[1759328071856,0.00013958,117190.0,117180.0,0.537416]
[1759328072286,0.00013958,117190.0,117180.0,0.794936]
[1759328072747,0.00013958,117190.0,117180.0,0.795636]
[1759328073092,0.00013958,117190.0,117180.0,0.794936]
[1759328073691,0.00013958,117190.0,117180.0,0.795636]
[1759328074698,0.00013958,117190.0,117180.0,0.88502147]
[1759328077042,0.00013958,117190.0,117180.0,0.91517337]
[1759328078886,0.07743723,117220.0,117210.0,0.5106339]
[1759328079097,0.07743723,117220.0,117210.0,0.7689039]
[1759328079241,0.00795961,117220.0,117210.0,0.7689039]
[1759328079441,0.06947762,117240.0,117230.0,0.34]
[1759328079690,0.16697142,117240.0,117230.0,0.34]
[1759328079889,0.17206142,117240.0,117230.0,0.34]
[1759328080083,0.17206142,117240.0,117230.0,0.51060479]
[1759328080314,0.0996038,117240.0,117230.0,0.51060479]
[1759328080523,0.0974938,117240.0,117230.0,0.51116479]
[1759328081333,0.09163516,117240.0,117230.0,0.76844479]
[1759328081577,0.09163516,117240.0,117230.0,0.76788479]
[1759328082387,0.09163516,117240.0,117230.0,0.76844479]
[1759328082602,0.09163516,117240.0,117230.0,0.76788479]
[1759328082791,0.08952516,117240.0,117230.0,0.76844479]
[1759328082994,0.00013969,117240.0,117230.0,0.76879479]
[1759328083233,0.00013969,117240.0,117230.0,0.76844479]
[1759328083653,0.00013969,117240.0,117230.0,0.76836479]
[1759328083654,0.00224969,117240.0,117230.0,0.76836479]
[1759328083834,0.00224969,117240.0,117230.0,0.51116479]
[1759328084040,0.00013969,117240.0,117230.0,0.76836479]
[1759328084607,0.00013969,117240.0,117230.0,0.51116479]
[1759328084804,0.00013969,117240.0,117230.0,0.76836479]
[1759328085019,0.00013969,117240.0,117230.0,0.78096528]
[1759328085216,0.00013969,117240.0,117230.0,0.52380528]
[1759328085572,0.00013969,117240.0,117230.0,0.78096528]
[1759328087674,0.00013969,117240.0,117230.0,0.52380528]
[1759328087897,0.00013969,117240.0,117230.0,0.78092528]
[1759328088722,0.00224969,117240.0,117230.0,0.78032528]
[1759328089138,0.00013969,117240.0,117230.0,0.78088528]
[1759328090296,0.00013969,117240.0,117230.0,0.78123528]
[1759328090726,0.00013969,117240.0,117230.0,0.52415528]
[1759328090971,0.00013969,117240.0,117230.0,0.78080528]
[1759328092678,0.00013969,117240.0,117230.0,0.52380528]
[1759328093087,0.00013969,117240.0,117230.0,0.78076528]
[1759328093534,0.00517969,117240.0,117230.0,0.52324528]
[1759328093678,0.00517969,117240.0,117230.0,0.78020528]
[1759328094082,0.00215969,117240.0,117230.0,0.78076528]
[1759328094281,0.00013969,117240.0,117230.0,0.78076528]
[1759328095985,0.00013969,117240.0,117230.0,0.52380528]
[1759328096186,0.00215969,117240.0,117230.0,0.52324528]
[1759328096423,0.2651554,117240.0,117230.0,0.01264049]
[1759328096835,0.17060479,117230.0,117210.0,0.17063175]
[1759328097017,0.00504,117220.0,117210.0,0.42751175]
[1759328097215,0.26301026,117230.0,117220.0,0.51061934]
[1759328097458,0.26201026,117230.0,117220.0,0.51061934]
[1759328097875,0.26503026,117230.0,117220.0,0.51061934]
[1759328098394,0.09442547,117230.0,117220.0,0.51061934]
[1759328098748,0.27015969,117240.0,117230.0,0.51060479]
[1759328098988,0.35652516,117240.0,117230.0,0.51116479]
[1759328099389,0.35854516,117240.0,117230.0,0.51116479]
[1759328099765,0.35854516,117240.0,117230.0,0.51060479]
[1759328100013,0.35854516,117240.0,117230.0,0.34]
[1759328100224,0.5321554,117240.0,117230.0,0.34]
[1759328100368,0.36156516,117240.0,117230.0,0.34]
[1759328100572,0.5321554,117240.0,117230.0,0.51060479]
[1759328100784,0.36156516,117240.0,117230.0,0.51060479]
[1759328101213,0.36156516,117240.0,117230.0,0.51116479]
[1759328101214,0.26713969,117240.0,117230.0,0.51116479]
[1759328102289,0.26713969,117240.0,117230.0,0.51151479]
[1759328103059,0.00013969,117240.0,117230.0,0.51116479]
[1759328103273,0.00215969,117240.0,117230.0,0.51060479]
[1759328103486,0.00013969,117240.0,117230.0,0.76788479]
[1759328104132,0.00215969,117240.0,117230.0,0.76732479]
[1759328104356,0.00517969,117240.0,117230.0,0.51060479]
[1759328104558,0.00517969,117240.0,117230.0,0.76732479]
[1759328104920,0.00215969,117240.0,117230.0,0.76728479]
[1759328105642,0.00517969,117240.0,117230.0,0.76728479]
[1759328105844,0.00517969,117240.0,117230.0,0.51060479]
[1759328106084,0.00517969,117240.0,117230.0,0.76728479]
[1759328106284,0.09456516,117240.0,117230.0,0.51060479]
[1759328106507,0.2651554,117240.0,117230.0,0.34]
[1759328106717,0.17061337,117230.0,117210.0,0.19169179]
[1759328106938,0.00504,117220.0,117210.0,0.44833179]
[1759328107241,0.00504,117220.0,117210.0,0.53169179]
[1759328107449,0.00202,117220.0,117210.0,0.78833179]
[1759328107655,0.09240547,117230.0,117210.0,0.78833179]
[1759328107656,0.09240547,117230.0,117220.0,0.51061934]
[1759328107859,0.08938547,117230.0,117220.0,0.51061934]
[1759328108080,0.00013969,117240.0,117230.0,0.17060479]
[1759328108296,0.08952516,117240.0,117230.0,0.17116479]
[1759328108506,0.08952516,117240.0,117230.0,0.42776479]
[1759328109377,0.08952516,117240.0,117230.0,0.76776479]
[1759328110265,0.09154516,117240.0,117230.0,0.76716479]
[1759328110450,0.09154516,117240.0,117230.0,0.34]
[1759328110451,0.2651554,117240.0,117230.0,0.34]
[1759328110671,0.27313438,117240.0,117230.0,0.34]
[1759328111533,0.10254414,117240.0,117230.0,0.51060479]
[1759328112144,0.27313438,117240.0,117230.0,0.51060479]
[1759328112556,0.27313438,117240.0,117230.0,0.34]
[1759328113093,0.10254414,117240.0,117230.0,0.51060479]
[1759328113422,0.27313438,117240.0,117230.0,0.51060479]
[1759328113920,0.2651554,117240.0,117230.0,0.51060479]
[1759328114150,0.10255222,117240.0,117230.0,0.51060479]
[1759328114367,0.2651554,117240.0,117230.0,0.51060479]
[1759328114570,0.2651554,117240.0,117230.0,0.34]
[1759328114954,0.27314237,117240.0,117230.0,0.34]
[1759328115193,0.2651554,117240.0,117230.0,0.51060479]
[1759328115395,0.09456516,117240.0,117230.0,0.51060479]
[1759328115571,0.5216354,117240.0,117230.0,0.51060479]
[1759328116338,0.5216354,117240.0,117230.0,0.34]
[1759328116974,0.5216354,117240.0,117230.0,0.51060479]
[1759328117335,0.58592662,117240.0,117230.0,0.34]
[1759328117583,0.17060673,117230.0,117220.0,0.17061934]
[1759328117794,0.2630122,117230.0,117220.0,0.17061934]
[1759328118027,0.2650322,117230.0,117220.0,0.17061934]
[1759328118761,0.34780547,117230.0,117220.0,0.17117934]
[1759328118956,0.08938547,117230.0,117220.0,0.17117934]
[1759328119977,0.08938547,117230.0,117220.0,0.51117934]
[1759328120562,0.08938547,117230.0,117220.0,0.51152934]
[1759328120966,0.08938547,117230.0,117220.0,0.51117934]
[1759328121213,0.00013969,117240.0,117230.0,0.51060479]
[1759328121449,0.00013969,117240.0,117230.0,0.76752479]
[1759328122207,0.00208969,117240.0,117230.0,0.76696479]
[1759328122426,0.00208969,117240.0,117230.0,0.76752479]
[1759328122642,0.00013969,117240.0,117230.0,0.76752479]
[1759328124321,0.00013969,117240.0,117230.0,0.76787479]
[1759328125563,0.00013969,117240.0,117230.0,0.82849213]
[1759328125767,0.00013969,117240.0,117230.0,0.76787479]
[1759328127149,0.00013969,117240.0,117230.0,0.76740479]
[1759328127490,0.00013969,117240.0,117230.0,0.76736479]
[1759328127702,0.00013969,117240.0,117230.0,0.51116479]
[1759328127837,0.00013969,117240.0,117230.0,0.76736479]
[1759328128822,0.00208969,117240.0,117230.0,0.76680479]
[1759328129030,0.00509969,117240.0,117230.0,0.51060479]
[1759328129217,0.00509969,117240.0,117230.0,0.76676479]
[1759328129635,0.00208969,117240.0,117230.0,0.76676479]
[1759328130199,0.00013969,117240.0,117230.0,0.76732479]
[1759328130404,0.00013969,117240.0,117230.0,0.82794213]
[1759328132938,0.00509969,117240.0,117230.0,0.82734213]
[1759328133178,0.00208969,117240.0,117230.0,0.51060479]
[1759328133396,0.00509969,117240.0,117230.0,0.76668479]
[1759328134178,0.00208969,117240.0,117230.0,0.76724479]
[1759328134378,0.00013969,117240.0,117230.0,0.76724479]
[1759328134613,0.00013969,117240.0,117230.0,0.82821213]
[1759328135194,0.00013969,117240.0,117230.0,0.82786213]
[1759328135401,0.00013969,117240.0,117230.0,0.82821213]
[1759328136055,0.26713969,117240.0,117230.0,0.82821213]
[1759328138237,0.26713969,117240.0,117230.0,0.76759479]
[1759328138424,0.00013969,117240.0,117230.0,0.93275194]
[1759328138826,0.00013969,117240.0,117230.0,0.93263194]
[1759328139028,0.00013969,117240.0,117230.0,1.02131194]
[1759328139226,0.00013969,117240.0,117230.0,0.67667194]
[1759328139437,0.00013969,117240.0,117230.0,1.02131194]
[1759328139841,0.00013969,117240.0,117230.0,1.11116194]
[1759328140119,0.00013969,117240.0,117230.0,1.02131194]
[1759328140878,0.00013969,117240.0,117230.0,0.94554026]
[1759328141079,0.00013969,117240.0,117230.0,1.02131194]
[1759328141302,0.00013969,117240.0,117230.0,0.93255194]
[1759328141513,0.00013969,117240.0,117230.0,1.02123194]
[1759328142088,0.00013969,117240.0,117230.0,0.67667194]
[1759328142291,0.00013969,117240.0,117230.0,1.02123194]
[1759328143219,0.00026125,117250.0,117240.0,0.17059024]
[1759328143469,0.00026125,117250.0,117240.0,0.59076129]
[1759328143712,0.00026125,117250.0,117240.0,0.17150024]
[1759328143926,0.00026125,117250.0,117240.0,0.42734024]
[1759328144128,0.00026125,117250.0,117240.0,0.60540571]
[1759328144348,0.00026125,117250.0,117240.0,0.33653676]
[1759328144578,0.00026125,117250.0,117240.0,0.76521676]
[1759328144791,0.00026125,117250.0,117240.0,1.05116866]
[1759328145228,0.0002,117260.0,117250.0,0.17057569]
[1759328145442,0.0002,117260.0,117250.0,0.26031116]
[1759328145658,0.0002,117260.0,117250.0,0.60535116]
[1759328145884,0.0002,117260.0,117250.0,0.26087116]
[1759328146114,0.0002,117260.0,117250.0,0.51667116]
[1759328146384,0.0002,117260.0,117250.0,0.60535116]
[1759328146608,1e-08,117260.0,117250.0,1.06530306]
[1759328146808,1e-08,117260.0,117250.0,1.09090034]
[1759328146936,1e-08,117260.0,117250.0,1.16655139]
[1759328147336,1e-08,117260.0,117250.0,1.16651139]
[1759328147927,1e-08,117260.0,117250.0,1.16647139]
[1759328148585,1e-08,117260.0,117250.0,0.82207139]
[1759328148799,1e-08,117260.0,117250.0,1.16647139]
[1759328149895,1e-08,117260.0,117250.0,1.07667139]
[1759328150106,0.00176594,117280.0,117270.0,0.5105466]
[1759328150304,0.00223138,117280.0,117270.0,0.7662266]
[1759328150520,0.00223138,117280.0,117270.0,0.7671366]
[1759328151351,0.00758138,117280.0,117270.0,0.5105466]
[1759328151578,0.00758138,117280.0,117270.0,0.7661866]
[1759328151786,0.00223138,117280.0,117270.0,0.7667466]
[1759328151989,0.00223138,117280.0,117270.0,0.7670966]
[1759328154481,0.00223138,117280.0,117270.0,0.85648207]
[1759328154689,0.00223138,117280.0,117270.0,0.85605207]
[1759328155353,0.00223138,117280.0,117270.0,0.7666666]
[1759328155565,0.00223138,117280.0,117270.0,0.85640207]
[1759328156574,0.00223138,117280.0,117270.0,0.60084207]
[1759328156801,0.00223138,117280.0,117270.0,0.97515397]
[1759328157004,0.00223138,117280.0,117270.0,0.63099397]
[1759328157205,0.00223138,117280.0,117270.0,0.88647397]
[1759328157373,0.00223138,117280.0,117270.0,0.65658688]
[1759328157572,0.00223138,117280.0,117270.0,1.00070688]
[1759328157936,0.00223138,117280.0,117270.0,0.97020498]
[1759328158140,0.00223138,117280.0,117270.0,0.62608498]
[1759328158349,0.00438138,117280.0,117270.0,0.5991866]
[1759328158566,0.00223138,117280.0,117270.0,0.8546666]
[1759328158771,0.00758138,117280.0,117270.0,0.5105466]
[1759328158979,0.00758138,117280.0,117270.0,0.7659866]
[1759328159152,0.00223138,117280.0,117270.0,0.5111066]
[1759328159357,0.00758138,117280.0,117270.0,0.1705466]
[1759328159560,0.00758138,117280.0,117270.0,0.4259866]
[1759328159781,0.17811844,117280.0,117270.0,0.1705466]
[1759328159969,0.26750391,117280.0,117250.0,0.17910447]
[1759328160181,0.17056114,117260.0,117250.0,0.17057569]
[1759328160403,0.26529661,117260.0,117250.0,0.17057569]
[1759328160566,0.17057569,117250.0,117240.0,0.17059024]
[1759328160768,0.26531116,117250.0,117240.0,0.17059024]
[1759328161215,0.17059024,117240.0,117230.0,0.17060479]
[1759328161413,0.26532571,117240.0,117220.0,0.06038978]
[1759328161617,0.08938547,117230.0,117220.0,0.17061745]
[1759328161751,0.43342547,117240.0,117230.0,0.17060479]
[1759328162139,0.2554,117250.0,117240.0,0.17058928]
[1759328162254,0.60615116,117250.0,117230.0,0.17060479]
[1759328162460,0.51751769,117250.0,117240.0,0.17059024]
[1759328162659,0.52071769,117250.0,117240.0,0.17059024]
[1759328162885,0.52071769,117250.0,117230.0,0.17060479]
[1759328163097,0.0032,117240.0,117230.0,0.17060479]
[1759328163298,0.00535,117240.0,117230.0,0.17060479]
[1759328164230,0.26532571,117240.0,117220.0,0.43454841]
[1759328164512,0.26532571,117240.0,117230.0,0.17060479]
[1759328164720,0.35009547,117240.0,117230.0,0.17060479]
[1759328165766,0.25540653,117250.0,117240.0,0.17059024]
[1759328165981,4.653e-05,117250.0,117240.0,0.17115024]
[1759328166642,0.00219653,117250.0,117240.0,0.17059024]
[1759328166863,4.653e-05,117250.0,117240.0,0.17059024]
[1759328167076,4.653e-05,117250.0,117240.0,0.17115024]
[1759328167306,0.00539653,117250.0,117240.0,0.17059024]
[1759328169216,0.26535769,117250.0,117240.0,0.17059024]
[1759328169627,0.52063769,117250.0,117240.0,0.17059024]
[1759328169830,0.26535769,117250.0,117240.0,0.17059024]
[1759328170031,0.52063769,117250.0,117230.0,0.17060479]
[1759328170259,0.26215769,117250.0,117240.0,0.17059024]
[1759328170506,0.091582,117250.0,117240.0,0.17059024]
[1759328170707,0.346862,117250.0,117240.0,0.17059024]
[1759328170912,0.094782,117250.0,117240.0,0.17059024]
[1759328171150,0.350062,117250.0,117240.0,0.17059024]
[1759328171587,0.094782,117250.0,117240.0,0.17059024]
[1759328171759,0.350022,117250.0,117240.0,0.17059024]
[1759328172175,0.094782,117250.0,117240.0,0.17059024]
[1759328172384,0.350022,117250.0,117240.0,0.17059024]
[1759328172724,0.00219653,117250.0,117240.0,0.18764926]
[1759328172931,4.653e-05,117250.0,117240.0,0.17115024]
[1759328173127,4.653e-05,117250.0,117240.0,0.18820926]
[1759328173710,4.653e-05,117250.0,117240.0,0.17115024]
[1759328173920,4.653e-05,117250.0,117240.0,0.51150024]
[1759328174927,4.653e-05,117250.0,117240.0,0.76674024]
[1759328176161,4.653e-05,117250.0,117240.0,0.51150024]
[1759328178024,4.653e-05,117250.0,117240.0,0.76666024]
[1759328179427,0.00219653,117250.0,117240.0,0.51059024]
[1759328180124,4.653e-05,117250.0,117240.0,0.51115024]
[1759328181170,0.00210653,117250.0,117240.0,0.51059024]
[1759328181350,4.653e-05,117250.0,117240.0,0.51115024]
[1759328182172,4.653e-05,117250.0,117240.0,0.51150024]
[1759328182374,4.653e-05,117250.0,117240.0,0.57189002]
[1759328182671,0.00210653,117250.0,117240.0,0.57098002]
[1759328182814,0.00513653,117250.0,117240.0,0.51059024]
[1759328183228,0.00210653,117250.0,117240.0,0.51059024]
[1759328183428,0.00210653,117250.0,117240.0,0.51115024]
[1759328183983,0.00210653,117250.0,117240.0,0.51059024]
[1759328184352,0.00513653,117250.0,117240.0,0.51059024]
[1759328184553,0.094522,117250.0,117240.0,0.51059024]
[1759328185362,0.091492,117250.0,117240.0,0.51059024]
[1759328185616,0.094522,117250.0,117240.0,0.51059024]
[1759328185961,0.091492,117250.0,117240.0,0.51059024]
[1759328186409,0.267,117240.0,117230.0,0.23099457]
[1759328186614,0.267,117240.0,117230.0,0.23190457]
[1759328186849,0.267,117240.0,117230.0,0.57190457]
[1759328187066,0.267,117240.0,117230.0,0.51151479]
[1759328187277,0.267,117240.0,117230.0,0.58716584]
[1759328187703,0.267,117240.0,117230.0,0.84181584]
[1759328187890,0.267,117240.0,117230.0,0.58681584]
[1759328188106,0.267,117240.0,117230.0,0.76647479]
[1759328188279,0.267,117240.0,117230.0,0.84212584]
[1759328189450,0.267,117240.0,117230.0,0.84216145]
[1759328191120,0.267,117240.0,117230.0,0.84212145]
[1759328191746,0.267,117240.0,117230.0,0.58720145]
[1759328191968,0.267,117240.0,117230.0,0.84212145]
[1759328192174,0.267,117240.0,117230.0,0.84208145]
[1759328193531,0.267,117240.0,117230.0,0.76639479]
[1759328194250,4.653e-05,117250.0,117240.0,0.51059024]
[1759328194452,4.653e-05,117250.0,117240.0,0.57152355]
[1759328194658,4.653e-05,117250.0,117240.0,0.57208355]
[1759328195614,4.653e-05,117250.0,117240.0,0.82692355]
[1759328195850,4.653e-05,117250.0,117240.0,0.57208355]
[1759328196050,4.653e-05,117250.0,117240.0,0.82692355]
[1759328196518,0.00210653,117250.0,117240.0,0.57173355]
[1759328196725,0.00513653,117250.0,117240.0,0.82597355]
[1759328197088,4.653e-05,117250.0,117240.0,0.82653355]
[1759328198479,4.653e-05,117250.0,117230.0,0.2311767]
[1759328198480,0.17571222,117250.0,117230.0,0.2311767]
[1759328198685,0.26300571,117240.0,117230.0,0.2311767]
[1759328198945,0.09447547,117240.0,117230.0,0.17059339]
[1759328199114,0.26506571,117240.0,117220.0,0.23973172]
[1759328199326,0.00303,117230.0,117220.0,0.23973172]
[1759328199548,0.08938547,117230.0,117220.0,0.57973172]
[1759328199703,0.08938547,117230.0,117220.0,0.24029172]
[1759328200143,0.08938547,117230.0,117220.0,0.58029172]
[1759328200864,0.25775,117240.0,117230.0,0.17060479]
[1759328201063,0.25981,117240.0,117230.0,0.17060479]
[1759328202317,0.17060479,117230.0,117220.0,0.51914841]
[1759328202536,0.26508026,117230.0,117210.0,0.19169179]
[1759328202751,0.26205026,117230.0,117220.0,0.17061934]
[1759328202983,0.17061934,117220.0,117210.0,0.01253296]
[1759328203199,0.51472481,117220.0,117210.0,0.01253296]
[1759328203425,0.17064708,117210.0,117190.0,0.1790993]
[1759328203646,0.00509,117200.0,117190.0,0.1790993]
[1759328203865,0.09447547,117200.0,117190.0,0.1790993]
[1759328204563,0.09447547,117200.0,117190.0,0.19025982]
[1759328204787,0.09149196,117200.0,117190.0,0.19025982]
[1759328205011,0.08943196,117200.0,117190.0,0.19081982]
[1759328205235,0.08943196,117200.0,117190.0,0.26654007]
[1759328205467,0.08943196,117200.0,117190.0,0.19081982]
[1759328206251,0.09149196,117200.0,117190.0,0.19025982]
[1759328207085,0.08943196,117200.0,117190.0,0.19081982]
[1759328207731,4.649e-05,117200.0,117190.0,0.19081982]
[1759328208453,4.649e-05,117200.0,117190.0,0.53081982]
[1759328209513,0.00513649,117200.0,117190.0,0.78489982]
[1759328209732,0.00210649,117200.0,117190.0,0.78545982]
[1759328209947,4.649e-05,117200.0,117190.0,0.78545982]
[1759328210777,4.649e-05,117200.0,117190.0,0.78580982]
[1759328212039,4.649e-05,117200.0,117190.0,0.93913631]
[1759328212502,4.649e-05,117200.0,117190.0,1.02781631]
[1759328212708,4.649e-05,117200.0,117190.0,1.05342786]
[1759328214564,4.649e-05,117200.0,117190.0,1.08357976]
[1759328215452,4.649e-05,117200.0,117190.0,1.20857976]
[1759328215715,4.649e-05,117200.0,117190.0,9.25062845]
[1759328216116,4.649e-05,117200.0,117190.0,9.16194845]
[1759328216355,4.649e-05,117200.0,117190.0,9.60546845]
[1759328216876,4.649e-05,117200.0,117190.0,8.86525976]
[1759328217135,4.649e-05,117200.0,117190.0,9.56333976]
[1759328217593,0.06947762,117240.0,117230.0,0.51060479]
[1759328217881,0.06952416,117240.0,117230.0,0.76512479]
[1759328218119,0.06952416,117240.0,117230.0,0.76568479]
[1759328218354,4.654e-05,117240.0,117230.0,0.76603479]
[1759328218814,4.654e-05,117240.0,117230.0,0.94406026]
[1759328219236,4.654e-05,117240.0,117230.0,0.92406026]
[1759328220658,4.654e-05,117240.0,117230.0,0.98920794]
[1759328220867,4.654e-05,117240.0,117230.0,0.98916794]
[1759328221283,4.654e-05,117240.0,117230.0,0.64604794]
[1759328221490,4.654e-05,117240.0,117230.0,0.98916794]
[1759328221696,4.654e-05,117240.0,117230.0,0.64604794]
[1759328221908,4.654e-05,117240.0,117230.0,0.64569794]
[1759328222127,4.654e-05,117240.0,117230.0,0.98881794]
[1759328222557,4.654e-05,117240.0,117230.0,0.98916794]
[1759328222955,4.654e-05,117240.0,117230.0,0.64604794]
[1759328223167,4.654e-05,117240.0,117230.0,0.58055026]
[1759328223376,4.654e-05,117240.0,117230.0,0.83495026]
[1759328223583,4.654e-05,117240.0,117230.0,0.58090026]
[1759328223813,4.654e-05,117240.0,117230.0,0.83495026]
[1759328224031,4.654e-05,117240.0,117230.0,0.83530026]
[1759328224240,4.654e-05,117240.0,117230.0,0.58090026]
[1759328224464,4.654e-05,117240.0,117230.0,0.83526026]
[1759328224867,4.654e-05,117240.0,117230.0,0.58090026]
[1759328225165,4.654e-05,117240.0,117230.0,0.58055026]
[1759328225409,0.00217654,117240.0,117230.0,0.74496479]